fUSD/lending_fUSD_20240331
["ID","MTS","AMOUNT","RATE_DAILY","PERIOD"]
[321077179,1711883335108,223.94252704,0.00024,2]
[321077180,1711883337865,19595.93656809,0.00028967,2]
[321077181,1711883338040,466868.44275348,0.00028967,2]
[321077182,1711883338065,454067.04879433,0.00028967,2]
[321077183,1711883350688,288.61270118,0.00028967,2]
[321077184,1711883350818,1012.66020708,0.00028967,2]
[321077185,1711883353858,19595.93656809,0.00028967,2]
[321077186,1711883354036,525427.35536735,0.00028967,2]
[321077187,1711883377872,599.57326643,0.00028967,2]
[321077192,1711883398809,-4007.43555001,0.00030217,4]
[321077193,1711883398833,-948.6088336,0.00030218,15]
[321077194,1711883398859,-336.50897939,0.00030218,4]
[321077195,1711883398883,-155.0,0.00030218,4]
[321077196,1711883398907,-17159.6667067,0.00030219,4]
[321077197,1711883398930,-2915.14838035,0.00030219,4]
[321077198,1711883398954,-547.16350628,0.00030219,2]
[321077199,1711883398978,-155.0,0.00030219,4]
[321077200,1711883399002,-1661.36324253,0.00030219,4]
[321077201,1711883399025,-2000.0,0.0003022,2]
[321077202,1711883399050,-5794.43271178,0.0003022,4]
[321077203,1711883399074,-155.0,0.00030221,4]
[321077204,1711883399099,-1418.72171459,0.00030221,4]
[321077205,1711883399123,-1084.98442648,0.00030221,4]
[321077206,1711883399147,-5782.98327556,0.00030221,2]
[321077207,1711883399353,-738.35813102,0.00030222,4]
[321077208,1711883399379,-150.0,0.00030222,2]
[321077209,1711883399403,-205.0,0.00030222,2]
[321077210,1711883399427,-33234.62454171,0.00030223,4]
[321077211,1711883401902,176.19,0.00028742,2]
[321077212,1711883412543,-738.35813102,0.00030216,4]
[321077213,1711883412568,-10273.21026343,0.00030218,4]
[321077214,1711883412587,-2000.0,0.00030221,2]
[321077215,1711883412607,-2816.52135582,0.00030222,2]
[321077216,1711883412628,-155.80412866,0.00030222,4]
[321077217,1711883412648,-13925.22272169,0.00030223,4]
[321077218,1711883412667,-2116.0,0.00030224,2]
[321077219,1711883412686,-9999.99,0.00030225,2]
[321077220,1711883412705,-499.99,0.00030225,2]
[321077221,1711883413122,17159.6667067,0.00030221,4]
[321077222,1711883413343,156.96796697,0.00030221,4]
[321077223,1711883413927,529.0753707,0.00030221,4]
[321077224,1711883414499,201.34532869,0.00030225,4]
[321077225,1711883414817,1950.49442427,0.00030221,4]
[321077226,1711883414908,164.11253645,0.00029919,2]
[321077227,1711883415196,447.6930222,0.00030221,15]
[321077228,1711883415363,695.40382292,0.00030225,4]
[321077229,1711883415403,2826.15528818,0.00030221,4]
[321077230,1711883416332,810.45652387,0.00030225,4]
[321077231,1711883416412,266.19889504,0.00030225,2]
[321077232,1711883417905,1419.20613469,0.00030221,4]
[321077233,1711883428856,8561.00855286,0.00030221,4]
[321077244,1711883432522,-323.95,0.00030226,2]
[321077246,1711883432532,-6.6751,0.00030231,4]
[321077248,1711883432576,-464.33623994,0.00030231,4]
[321077249,1711883432587,-838.14,0.00030235,2]
[321077250,1711883432597,-155.0,0.00030238,4]
[321077251,1711883432608,-472.36284,0.00030243,2]
[321077252,1711883432618,-538.06634395,0.00030248,4]
[321077253,1711883432628,-7363.06975053,0.00031268,4]
[321077254,1711883432639,-388.10456657,0.00031269,4]
[321077255,1711883432649,-155.0,0.00031269,4]
[321077256,1711883432659,-733.69667638,0.0003127,4]
[321077257,1711883432670,-2227.02,0.0003127,2]
[321077258,1711883432680,-150.99,0.0003127,2]
[321077259,1711883432690,-312.62860446,0.00031273,4]
[321077260,1711883432701,-2528.80406101,0.00031275,4]
[321077261,1711883432712,-362.42414368,0.00032874,4]
[321077262,1711883432722,-350.0,0.00033,3]
[321077263,1711883432732,-210.0,0.00033244,2]
[321077264,1711883432743,-417.69,0.00034383,2]
[321077265,1711883432752,-427.0,0.000348,3]
[321077266,1711883432763,-400.0,0.00035,3]
[321077267,1711883432773,-1338.42,0.0003592,2]
[321077268,1711883432784,-150.0,0.00036042,2]
[321077269,1711883432794,-547.58,0.00036044,2]
[321077270,1711883432803,-506.81,0.00036044,2]
[321077271,1711883432813,-3102.03,0.00036497,2]
[321077272,1711883432822,-10688.9,0.00036504,2]
[321077273,1711883432833,-6058.02,0.00036513,2]
[321077274,1711883432842,-293.0,0.00036569,2]
[321077275,1711883432852,-536.54,0.00036593,2]
[321077276,1711883432862,-417.69,0.00036647,2]
[321077277,1711883432873,-638.41,0.00036927,2]
[321077278,1711883432883,-182.82306052,0.00036982,4]
[321077279,1711883432893,-579.24720401,0.00036982,4]
[321077280,1711883432903,-450.0,0.00037,3]
[321077281,1711883432914,-500.0,0.00037053,2]
[321077282,1711883432924,-1000.0,0.0003708,2]
[321077283,1711883432935,-154.2895035,0.00037396,7]
[321077284,1711883432945,-244.6,0.00037473,2]
[321077285,1711883432955,-152.35,0.00038027,15]
[321077286,1711883432965,-244.6,0.00038843,2]
[321077287,1711883432974,-417.69,0.00038911,2]
[321077289,1711883432984,-500.0,0.00039,3]
[321077291,1711883432994,-3147.72141419,0.00039036,4]
[321077292,1711883433003,-235.46,0.00039067,2]
[321077293,1711883433013,-3102.03,0.00039236,2]
[321077294,1711883433023,-499.99,0.00039595,2]
[321077295,1711883433032,-949.37404731,0.00039615,4]
[321077296,1711883433042,-8960.97150277,0.00039797,4]
[321077297,1711883433075,-2690.43442718,0.00039797,4]
[321077330,1711883438371,-9514.65841361,0.00039797,4]
[321077331,1711883438385,-239.62323024,0.00039797,4]
[321077332,1711883438394,-4504.4071818,0.00039797,4]
[321077333,1711883438403,-474.73317686,0.00039798,2]
[321077334,1711883438413,-2205.06765993,0.00039799,2]
[321077335,1711883438427,-169.55,0.00039851,2]
[321077336,1711883438436,-532.67,0.00039851,2]
[321077337,1711883438445,-4736.72669976,0.0003999,2]
[321077338,1711883438455,-168.20000875,0.00039999,4]
[321077339,1711883438464,-200.0,0.0004,3]
[321077340,1711883438473,-411.0,0.00040225,4]
[321077341,1711883438483,-1363.35991343,0.00040269,4]
[321077342,1711883438492,-170.46952289,0.00040269,4]
[321077343,1711883438501,-2205.06765989,0.00040571,2]
[321077344,1711883438511,-268.03037,0.0004068,5]
[321077345,1711883438520,-268.03037,0.0004084,6]
[321077346,1711883438530,-268.03038,0.0004099,7]
[321077347,1711883438541,-983.1978848,0.00040995,2]
[321077348,1711883438550,-1250.72,0.00040995,2]
[321077349,1711883438559,-1000.0,0.00040999,3]
[321077350,1711883438569,-394.58863958,0.00040999,3]
[321077351,1711883438578,-2199.99999901,0.00041,4]
[321077352,1711883438588,-550.0,0.00041,3]
[321077353,1711883438597,-167.79,0.00041085,2]
[321077354,1711883438606,-150.0,0.00041086,2]
[321077355,1711883438615,-258.29929323,0.00041091,4]
[321077356,1711883438624,-155.0,0.00041091,4]
[321077357,1711883438633,-3858.21348741,0.00041091,4]
[321077358,1711883438647,-1712.41454635,0.00041091,4]
[321077359,1711883438656,-168.162835,0.00041091,4]
[321077360,1711883438665,-341.32563928,0.00041091,4]
[321077361,1711883438674,-406.08005128,0.00041091,4]
[321077362,1711883438683,-155.0,0.00041091,4]
[321077363,1711883438693,-198.91934909,0.00041091,4]
[321077364,1711883438702,-155.0,0.00041091,4]
[321077365,1711883438711,-156.06009208,0.00041091,4]
[321077366,1711883438720,-1823.23113443,0.00041091,4]
[321077367,1711883438735,-518.85280469,0.00041091,4]
[321077368,1711883438744,-854.93307856,0.00041091,5]
[321077369,1711883438753,-199.7947513,0.00041091,4]
[321077370,1711883438762,-326.41936545,0.00041091,4]
[321077371,1711883438775,-1309.14461714,0.00041091,4]
[321077372,1711883438786,-3723.30371651,0.00041091,4]
[321077373,1711883438795,-3820.4212277,0.00041091,4]
[321077374,1711883438805,-1757.21056864,0.00041091,4]
[321077375,1711883438815,-3846.71319902,0.00041091,2]
[321077376,1711883438824,-262.26705623,0.00041091,4]
[321077377,1711883438834,-155.0,0.00041092,4]
[321077378,1711883438843,-500.0,0.00041092,31]
[321077379,1711883438852,-500.0,0.00041092,31]
[321077380,1711883438862,-541.69670444,0.00041092,31]
[321077381,1711883438871,-2193.46681655,0.00041092,3]
[321077382,1711883438882,-21.5845806,0.00041093,4]
[321077383,1711883438891,-571.26988665,0.00041093,4]
[321077384,1711883438901,-155.7794274,0.00041093,4]
[321077385,1711883438910,-156.58242579,0.00041093,4]
[321077386,1711883438919,-205.59226142,0.00041093,4]
[321077387,1711883438929,-155.90982139,0.00041093,4]
[321077388,1711883438939,-1237.33265613,0.00041093,4]
[321077389,1711883438949,-156.26170679,0.00041093,4]
[321077390,1711883438957,-156.00900706,0.00041093,4]
[321077391,1711883438967,-214.80646049,0.00041093,4]
[321077392,1711883438977,-165.1822536,0.00041093,4]
[321077393,1711883438986,-180.09860931,0.00041093,4]
[321077394,1711883438995,-299.18533016,0.00041093,4]
[321077395,1711883439004,-218.07962384,0.00041093,4]
[321077396,1711883439014,-487.23953231,0.00041093,4]
[321077397,1711883439023,-2346.28190272,0.00041093,4]
[321077398,1711883439033,-155.0,0.00041093,4]
[321077399,1711883439042,-155.55332397,0.00041093,4]
[321077400,1711883439051,-155.77109055,0.00041093,4]
[321077401,1711883439061,-155.25776928,0.00041093,4]
[321077402,1711883439070,-23219.28157836,0.00041093,4]
[321077403,1711883439080,-155.42971496,0.00041093,4]
[321077404,1711883439090,-10557.61748168,0.00041093,4]
[321077405,1711883439099,-155.60797806,0.00041093,4]
[321077406,1711883439108,-374.60114672,0.00041093,4]
[321077407,1711883439118,-4382.42519402,0.00041093,4]
[321077408,1711883439127,-155.43666342,0.00041093,4]
[321077409,1711883439136,-155.0,0.00041093,4]
[321077410,1711883439146,-388.1261824,0.00041093,4]
[321077411,1711883439155,-268.03037,0.00041093,7]
[321077412,1711883439164,-268.03038,0.00041093,7]
[321077413,1711883439173,-345.10287568,0.00041094,4]
[321077414,1711883439183,-255.17859119,0.00041095,4]
[321077415,1711883439193,-677.45508372,0.00041095,4]
[321077416,1711883439202,-441.26794536,0.00041095,4]
[321077417,1711883439212,-500.0,0.00041095,4]
[321077418,1711883439221,-500.0,0.00041095,4]
[321077419,1711883439231,-500.0,0.00041095,4]
[321077420,1711883439241,-500.0,0.00041095,4]
[321077421,1711883439250,-679.43,0.00041095,2]
[321077422,1711883439260,-500.0,0.00041095,4]
[321077423,1711883439269,-500.0,0.00041095,4]
[321077424,1711883439278,-500.0,0.00041095,4]
[321077425,1711883439288,-500.0,0.00041095,4]
[321077426,1711883439297,-500.0,0.00041095,4]
[321077427,1711883439306,-500.0,0.00041095,4]
[321077428,1711883439315,-500.0,0.00041095,4]
[321077429,1711883439325,-150.0,0.00041095,4]
[321077430,1711883439334,-500.0,0.00041095,4]
[321077431,1711883439342,-555.12,0.00041095,4]
[321077432,1711883439351,-500.0,0.00041095,4]
[321077433,1711883439360,-500.0,0.00041095,4]
[321077434,1711883439369,-500.0,0.00041095,2]
[321077435,1711883439378,-500.0,0.00041095,4]
[321077436,1711883439388,-332.32831502,0.00041095,4]
[321077437,1711883439397,-500.0,0.00041095,4]
[321077438,1711883439409,-500.0,0.00041095,4]
[321077439,1711883439419,-500.0,0.00041095,4]
[321077440,1711883439428,-549.48,0.00041095,4]
[321077441,1711883439437,-500.0,0.00041095,4]
[321077442,1711883439447,-1070.48,0.00041095,4]
[321077443,1711883439458,-500.0,0.00041095,4]
[321077444,1711883439468,-267.82954923,0.00041095,4]
[321077445,1711883439477,-615.04,0.00041095,4]
[321077446,1711883439488,-1000.0,0.00041095,7]
[321077447,1711883439499,-500.0,0.00041095,4]
[321077448,1711883439508,-500.0,0.00041095,4]
[321077449,1711883439517,-510.25245901,0.00041095,4]
[321077450,1711883439527,-503.13329875,0.00041095,4]
[321077451,1711883439536,-500.0,0.00041095,4]
[321077452,1711883439545,-500.0,0.00041095,4]
[321077453,1711883439555,-500.0,0.00041095,4]
[321077454,1711883439566,-1673.45,0.00041095,4]
[321077455,1711883439576,-500.0,0.00041095,4]
[321077456,1711883439585,-8639.74,0.00041095,4]
[321077457,1711883439594,-500.0,0.00041095,4]
[321077458,1711883439603,-500.0,0.00041095,4]
[321077459,1711883439612,-500.0,0.00041095,4]
[321077460,1711883439621,-500.0,0.00041095,4]
[321077461,1711883439631,-500.0,0.00041095,4]
[321077462,1711883439641,-500.0,0.00041095,4]
[321077463,1711883439651,-1862.31,0.00041095,4]
[321077464,1711883439661,-500.0,0.00041095,4]
[321077465,1711883439670,-500.0,0.00041095,4]
[321077466,1711883439679,-507.34,0.00041095,4]
[321077467,1711883439688,-2605.92,0.00041095,4]
[321077468,1711883439698,-500.0,0.00041095,4]
[321077469,1711883439707,-9670.17,0.00041095,4]
[321077470,1711883439716,-1122.17,0.00041095,4]
[321077471,1711883439725,-500.0,0.00041095,4]
[321077472,1711883439735,-500.0,0.00041095,4]
[321077473,1711883439744,-1712.16,0.00041095,4]
[321077474,1711883439753,-500.0,0.00041095,4]
[321077475,1711883439762,-523.92153997,0.00041095,4]
[321077476,1711883439771,-2748.38,0.00041095,4]
[321077477,1711883439780,-500.0,0.00041095,4]
[321077478,1711883439790,-500.0,0.00041095,4]
[321077479,1711883439799,-500.0,0.00041095,4]
[321077480,1711883439808,-500.0,0.00041095,4]
[321077481,1711883439817,-500.0,0.00041095,4]
[321077482,1711883439826,-4301.58,0.00041095,4]
[321077483,1711883439835,-496.35441658,0.00041095,4]
[321077484,1711883439844,-531.6,0.00041095,4]
[321077485,1711883439853,-500.0,0.00041095,4]
[321077486,1711883439862,-500.0,0.00041095,4]
[321077487,1711883439871,-9908.7,0.00041095,4]
[321077488,1711883439880,-707.92,0.00041095,4]
[321077489,1711883439890,-3656.45,0.00041095,4]
[321077490,1711883439899,-500.0,0.00041095,4]
[321077491,1711883439909,-2921.85,0.00041095,4]
[321077492,1711883439918,-500.0,0.00041095,4]
[321077493,1711883439927,-500.0,0.00041095,4]
[321077494,1711883439936,-500.0,0.00041095,4]
[321077495,1711883439946,-3783.97,0.00041095,4]
[321077496,1711883439955,-2102.16,0.00041095,4]
[321077497,1711883439964,-500.0,0.00041095,4]
[321077498,1711883439973,-15160.16,0.00041095,4]
[321077499,1711883439983,-2273.33,0.00041095,4]
[321077500,1711883439992,-1657.86,0.00041095,4]
[321077501,1711883440002,-500.0,0.00041095,4]
[321077502,1711883440012,-500.0,0.00041095,4]
[321077503,1711883440021,-3435.73,0.00041095,4]
[321077504,1711883440030,-500.0,0.00041095,4]
[321077505,1711883440040,-500.0,0.00041095,4]
[321077506,1711883440049,-500.0,0.00041095,4]
[321077507,1711883440059,-500.0,0.00041095,4]
[321077508,1711883440069,-3547.44,0.00041095,4]
[321077509,1711883440078,-2803.49,0.00041095,4]
[321077510,1711883440087,-500.0,0.00041095,4]
[321077511,1711883440097,-500.0,0.00041095,4]
[321077512,1711883440106,-500.0,0.00041095,4]
[321077513,1711883440115,-354.95311937,0.00041095,4]
[321077514,1711883440124,-4194.52,0.00041095,4]
[321077515,1711883440133,-9215.25,0.00041095,4]
[321077516,1711883440142,-500.0,0.00041095,4]
[321077517,1711883440152,-500.0,0.00041095,4]
[321077518,1711883440161,-2011.87,0.00041095,4]
[321077519,1711883440170,-500.0,0.00041095,4]
[321077520,1711883440179,-500.0,0.00041095,4]
[321077521,1711883440189,-4752.87,0.00041095,4]
[321077522,1711883440198,-500.0,0.00041095,4]
[321077523,1711883440207,-2598.4,0.00041095,4]
[321077524,1711883440216,-500.0,0.00041095,4]
[321077525,1711883440226,-2126.31,0.00041095,4]
[321077526,1711883440235,-11877.83,0.00041095,4]
[321077527,1711883440244,-518.02,0.00041095,4]
[321077528,1711883440253,-1937.78,0.00041095,4]
[321077529,1711883440263,-640.64315228,0.00041095,4]
[321077530,1711883440272,-10453.94,0.00041095,4]
[321077531,1711883440282,-1076.45,0.00041095,4]
[321077532,1711883440291,-500.0,0.00041095,4]
[321077533,1711883440300,-500.0,0.00041095,4]
[321077534,1711883440310,-500.0,0.00041095,4]
[321077535,1711883440319,-2336.79,0.00041095,4]
[321077536,1711883440329,-552.15,0.00041095,4]
[321077537,1711883440338,-1920.41,0.00041095,4]
[321077538,1711883440348,-2290.08,0.00041095,4]
[321077539,1711883440357,-1182.09,0.00041095,4]
[321077540,1711883440367,-3941.13,0.00041095,4]
[321077541,1711883440376,-2482.25,0.00041095,4]
[321077542,1711883440385,-16241.59,0.00041095,4]
[321077543,1711883440395,-500.0,0.00041095,4]
[321077544,1711883440409,-3222.61,0.00041095,4]
[321077545,1711883440419,-500.0,0.00041095,4]
[321077546,1711883440429,-535.83,0.00041095,4]
[321077547,1711883440438,-500.0,0.00041095,4]
[321077548,1711883440448,-2590.66,0.00041095,4]
[321077549,1711883440458,-500.0,0.00041095,4]
[321077550,1711883440467,-609.57,0.00041095,4]
[321077551,1711883440477,-3509.53,0.00041095,4]
[321077552,1711883440487,-263.38317178,0.00041095,4]
[321077553,1711883440497,-500.0,0.00041095,4]
[321077554,1711883440506,-5528.21,0.00041095,4]
[321077555,1711883440515,-2238.05,0.00041095,4]
[321077556,1711883440524,-663.74,0.00041095,4]
[321077557,1711883440534,-232.1230362,0.00041095,4]
[321077558,1711883440543,-599.03932917,0.00041095,4]
[321077559,1711883440552,-2433.18,0.00041095,4]
[321077560,1711883440562,-500.0,0.00041095,4]
[321077561,1711883440572,-18780.41,0.00041095,4]
[321077562,1711883440581,-502.77,0.00041095,4]
[321077563,1711883440590,-1950.88,0.00041095,4]
[321077564,1711883440600,-500.0,0.00041095,4]
[321077565,1711883440609,-500.0,0.00041095,4]
[321077566,1711883440618,-500.0,0.00041095,4]
[321077567,1711883440627,-335.90673465,0.00041095,4]
[321077568,1711883440636,-500.0,0.00041095,4]
[321077569,1711883440645,-608.39,0.00041095,4]
[321077570,1711883440654,-16662.45,0.00041095,4]
[321077571,1711883440663,-1551.3,0.00041095,4]
[321077572,1711883440672,-682.79,0.00041095,4]
[321077573,1711883440681,-500.0,0.00041095,4]
[321077574,1711883440690,-4294.08,0.00041095,4]
[321077575,1711883440700,-935.22,0.00041095,4]
[321077576,1711883440709,-1935.59,0.00041095,4]
[321077577,1711883440719,-172.46,0.00041096,2]
[321077578,1711883440728,-1000.0,0.00041096,14]
[321077579,1711883440737,-983.19788479,0.00041146,2]
[321077580,1711883440746,-268.03037,0.0004115,7]
[321077581,1711883440755,-1000.0,0.00041164,14]
[321077582,1711883440764,-417.69,0.00041174,2]
[321077583,1711883440773,-2890.05891337,0.000412,3]
[321077584,1711883440782,-4474.8717903,0.000412,6]
[321077585,1711883440792,-1000.0,0.00041233,14]
[321077586,1711883440801,-500.0,0.00041244,2]
[321077587,1711883440810,-983.19788479,0.00041298,2]
[321077588,1711883440820,-1000.0,0.00041301,14]
[321077589,1711883440829,-158.81,0.00041303,2]
[321077590,1711883440838,-2205.06765989,0.00041343,2]
[321077591,1711883440847,-207.97893084,0.00041359,2]
[321077592,1711883440856,-500.0,0.00041368,8]
[321077593,1711883440865,-500.0,0.00041368,8]
[321077594,1711883440874,-500.0,0.00041369,4]
[321077595,1711883440883,-500.0,0.00041369,4]
[321077596,1711883440893,-500.0,0.00041369,4]
[321077597,1711883440904,-500.0,0.00041369,4]
[321077598,1711883440913,-679.43,0.00041369,2]
[321077599,1711883440922,-500.0,0.00041369,4]
[321077600,1711883440931,-500.0,0.00041369,4]
[321077601,1711883440940,-500.0,0.00041369,4]
[321077602,1711883440951,-500.0,0.00041369,4]
[321077603,1711883440961,-500.0,0.00041369,4]
[321077604,1711883440970,-210.17189912,0.00041369,4]
[321077605,1711883440979,-500.0,0.00041369,4]
[321077606,1711883440988,-150.0,0.00041369,4]
[321077607,1711883440997,-500.0,0.00041369,4]
[321077608,1711883441007,-555.12,0.00041369,4]
[321077609,1711883441015,-199.55673733,0.00041369,4]
[321077610,1711883441025,-500.0,0.00041369,4]
[321077611,1711883441034,-500.0,0.00041369,2]
[321077612,1711883441043,-500.0,0.00041369,4]
[321077613,1711883441052,-260.43,0.00041369,4]
[321077614,1711883441061,-500.0,0.00041369,4]
[321077615,1711883441071,-549.48,0.00041369,4]
[321077616,1711883441080,-500.0,0.00041369,4]
[321077617,1711883441089,-1070.48,0.00041369,4]
[321077618,1711883441099,-500.0,0.00041369,4]
[321077619,1711883441108,-207.40150351,0.00041369,4]
[321077620,1711883441117,-1000.0,0.00041369,7]
[321077621,1711883441126,-500.0,0.00041369,4]
[321077622,1711883441135,-500.0,0.00041369,4]
[321077623,1711883441144,-500.0,0.00041369,4]
[321077624,1711883441154,-1673.45,0.00041369,4]
[321077625,1711883441162,-500.0,0.00041369,4]
[321077626,1711883441171,-8639.74,0.00041369,4]
[321077627,1711883441181,-500.0,0.00041369,4]
[321077628,1711883441190,-500.0,0.00041369,4]
[321077629,1711883441199,-500.0,0.00041369,4]
[321077630,1711883441208,-500.0,0.00041369,4]
[321077631,1711883441218,-500.0,0.00041369,4]
[321077632,1711883441227,-500.0,0.00041369,4]
[321077633,1711883441237,-1862.31,0.00041369,4]
[321077634,1711883441246,-500.0,0.00041369,4]
[321077635,1711883441256,-500.0,0.00041369,4]
[321077636,1711883441265,-507.34,0.00041369,4]
[321077637,1711883441275,-2605.92,0.00041369,4]
[321077638,1711883441284,-500.0,0.00041369,4]
[321077639,1711883441294,-9670.17,0.00041369,4]
[321077640,1711883441303,-1122.17,0.00041369,4]
[321077641,1711883441313,-500.0,0.00041369,4]
[321077642,1711883441323,-500.0,0.00041369,4]
[321077643,1711883441332,-1712.16,0.00041369,4]
[321077644,1711883441342,-500.0,0.00041369,4]
[321077645,1711883441351,-2748.38,0.00041369,4]
[321077646,1711883441361,-500.0,0.00041369,4]
[321077647,1711883441370,-500.0,0.00041369,4]
[321077648,1711883441379,-500.0,0.00041369,4]
[321077649,1711883441388,-500.0,0.00041369,4]
[321077650,1711883441398,-500.0,0.00041369,4]
[321077651,1711883441408,-4301.58,0.00041369,4]
[321077652,1711883441421,-531.6,0.00041369,4]
[321077653,1711883441430,-500.0,0.00041369,4]
[321077654,1711883441440,-500.0,0.00041369,4]
[321077655,1711883441450,-9908.7,0.00041369,4]
[321077656,1711883441459,-3656.45,0.00041369,4]
[321077657,1711883441468,-707.92,0.00041369,4]
[321077658,1711883441477,-639.13480539,0.00041369,4]
[321077659,1711883441486,-2921.85,0.00041369,4]
[321077660,1711883441496,-500.0,0.00041369,4]
[321077661,1711883441506,-500.0,0.00041369,4]
[321077662,1711883441515,-500.0,0.00041369,4]
[321077663,1711883441524,-3783.97,0.00041369,4]
[321077664,1711883441533,-2102.16,0.00041369,4]
[321077665,1711883441542,-500.0,0.00041369,4]
[321077666,1711883441551,-7427.68186419,0.00041369,4]
[321077667,1711883441607,-4555.82071812,0.00041369,4]
[321077668,1711883441618,-2655.7393363,0.00041369,4]
[321077669,1711883441820,-520.91808139,0.00041369,4]
[321077670,1711883441830,-2273.33,0.00041369,4]
[321077671,1711883441840,-1657.86,0.00041369,4]
[321077672,1711883441849,-500.0,0.00041369,4]
[321077673,1711883441858,-500.0,0.00041369,4]
[321077674,1711883441869,-3435.73,0.00041369,4]
[321077675,1711883441879,-500.0,0.00041369,4]
[321077676,1711883441889,-500.0,0.00041369,4]
[321077677,1711883441898,-500.0,0.00041369,4]
[321077678,1711883441908,-500.0,0.00041369,4]
[321077679,1711883441917,-3547.44,0.00041369,4]
[321077680,1711883441926,-2803.49,0.00041369,4]
[321077681,1711883441935,-500.0,0.00041369,4]
[321077682,1711883441945,-500.0,0.00041369,4]
[321077683,1711883441956,-500.0,0.00041369,4]
[321077684,1711883441965,-4194.52,0.00041369,4]
[321077685,1711883441974,-9215.25,0.00041369,4]
[321077686,1711883441983,-359.3727845,0.00041369,4]
[321077687,1711883441995,-140.6272155,0.00041369,4]
[321077688,1711883442004,-500.0,0.00041369,4]
[321077689,1711883442014,-2011.87,0.00041369,4]
[321077690,1711883442024,-500.0,0.00041369,4]
[321077691,1711883442034,-500.0,0.00041369,4]
[321077692,1711883442043,-4702.9645355,0.00041369,4]
[321077693,1711883442054,-49.9054645,0.00041369,4]
[321077694,1711883442065,-500.0,0.00041369,4]
[321077695,1711883442074,-2598.4,0.00041369,4]
[321077696,1711883442084,-490.03494957,0.00041369,4]
[321077697,1711883442093,-2126.31,0.00041369,4]
[321077698,1711883442103,-11877.83,0.00041369,4]
[321077699,1711883442112,-518.02,0.00041369,4]
[321077700,1711883442121,-1937.78,0.00041369,4]
[321077701,1711883442130,-10453.94,0.00041369,4]
[321077702,1711883442140,-1076.45,0.00041369,4]
[321077703,1711883442149,-500.0,0.00041369,4]
[321077704,1711883442158,-500.0,0.00041369,4]
[321077705,1711883442167,-500.0,0.00041369,4]
[321077706,1711883442176,-2336.79,0.00041369,4]
[321077707,1711883442185,-552.15,0.00041369,4]
[321077708,1711883442194,-1598.42301393,0.00041369,4]
[321077709,1711883442442,10278.2411941,0.00028742,2]
[321077710,1711883442722,-173.12450961,0.00040839,4]
[321077711,1711883442731,-150.0,0.00041005,2]
[321077712,1711883442741,-321.98698607,0.00041369,4]
[321077713,1711883442750,-2290.08,0.00041369,4]
[321077714,1711883442759,-1182.09,0.00041369,4]
[321077715,1711883442769,-3941.13,0.00041369,4]
[321077716,1711883442778,-2482.25,0.00041369,4]
[321077717,1711883442788,-16241.59,0.00041369,4]
[321077718,1711883442797,-500.0,0.00041369,4]
[321077719,1711883442806,-3222.61,0.00041369,4]
[321077720,1711883442816,-500.0,0.00041369,4]
[321077721,1711883442826,-535.83,0.00041369,4]
[321077722,1711883442836,-500.0,0.00041369,4]
[321077723,1711883442846,-2590.66,0.00041369,4]
[321077724,1711883442855,-500.0,0.00041369,4]
[321077725,1711883442864,-609.57,0.00041369,4]
[321077726,1711883442873,-3509.53,0.00041369,4]
[321077727,1711883442882,-500.0,0.00041369,4]
[321077728,1711883442891,-5528.21,0.00041369,4]